fUSD/lending_fUSD_20250906
["ID","MTS","AMOUNT","RATE_DAILY","PERIOD"]
[383932279,1757179859032,-400.0,0.00035616,8]
[383932280,1757179859042,-400.0,0.00035616,8]
[383932281,1757179859053,-400.0,0.00035616,8]
[383932282,1757179859063,-785.08,0.00035616,8]
[383932283,1757179859072,-400.0,0.00035616,8]
[383932284,1757179859083,-400.0,0.00035616,8]
[383932285,1757179859093,-400.0,0.00035616,8]
[383932286,1757179859103,-421.71,0.00035616,8]
[383932287,1757179859113,-400.0,0.00035616,8]
[383932288,1757179859122,-400.0,0.00035616,8]
[383932289,1757179859131,-400.0,0.00035616,8]
[383932290,1757179859142,-400.0,0.00035616,8]
[383932291,1757179859151,-400.0,0.00035616,8]
[383932292,1757179859160,-400.0,0.00035616,8]
[383932293,1757179859170,-400.0,0.00035616,8]
[383932294,1757179859179,-400.0,0.00035616,8]
[383932295,1757179859189,-400.0,0.00035616,8]
[383932296,1757179859198,-409.02142497,0.00035616,8]
[383932297,1757179859208,-738.58,0.00035616,8]
[383932298,1757179859218,-636.85,0.00035616,8]
[383932299,1757179859229,-400.0,0.00035616,8]
[383932300,1757179859238,-481.41,0.00035616,8]
[383932301,1757179859248,-522.13941148,0.00035616,8]
[383932302,1757179859258,-404.19,0.00035616,8]
[383932303,1757179859268,-400.0,0.00035616,8]
[383932304,1757179859278,-400.0,0.00035616,8]
[383932305,1757179859287,-400.0,0.00035616,8]
[383932306,1757179859297,-400.08076352,0.00035616,8]
[383932307,1757179859308,-578.14,0.00035616,8]
[383932308,1757179859317,-428.84,0.00035616,8]
[383932309,1757179859327,-400.0,0.00035616,8]
[383932310,1757179859336,-401.92307105,0.00035616,8]
[383932311,1757179859345,-400.0,0.00035616,8]
[383932312,1757179859355,-400.0,0.00035616,8]
[383932313,1757179859364,-400.0,0.00035616,8]
[383932314,1757179859373,-400.0,0.00035616,8]
[383932315,1757179859383,-400.0,0.00035616,8]
[383932316,1757179859393,-400.0,0.00035616,8]
[383932317,1757179859403,-579.65,0.00035616,8]
[383932318,1757179859412,-400.0,0.00035616,8]
[383932319,1757179859421,-400.0,0.00035616,8]
[383932320,1757179859431,-590.51,0.00035616,8]
[383932321,1757179859440,-470.19,0.00035616,8]
[383932322,1757179859450,-578.77,0.00035616,8]
[383932323,1757179859459,-400.0,0.00035616,8]
[383932324,1757179859470,-400.0,0.00035616,8]
[383932325,1757179859479,-500.0,0.00035616,2]
[383932326,1757179859489,-500.0,0.00035616,2]
[383932327,1757179859498,-400.0,0.00035616,8]
[383932328,1757179859507,-400.0,0.00035616,8]
[383932329,1757179859516,-500.0,0.00035616,2]
[383932330,1757179859525,-500.0,0.00035616,2]
[383932331,1757179859535,-500.0,0.00035616,2]
[383932332,1757179859544,-502.93773878,0.00035616,8]
[383932333,1757179859554,-500.0,0.00035616,2]
[383932334,1757179859564,-400.0,0.00035616,8]
[383932335,1757179859574,-599.93293445,0.00035616,2]
[383932336,1757179859583,-400.0,0.00035616,8]
[383932337,1757179859592,-400.0,0.00035616,8]
[383932338,1757179859602,-400.0,0.00035616,8]
[383932339,1757179859611,-538.61065472,0.00035616,8]
[383932340,1757179859620,-401.11287821,0.00035616,8]
[383932341,1757179859630,-401.46473926,0.00035616,8]
[383932342,1757179859640,-400.0,0.00035616,8]
[383932343,1757179859648,-400.0,0.00035616,8]
[383932344,1757179859658,-400.0,0.00035616,8]
[383932345,1757179859667,-400.0,0.00035616,8]
[383932346,1757179859676,-400.0,0.00035616,8]
[383932347,1757179859686,-400.0,0.00035616,8]
[383932348,1757179859695,-400.0,0.00035616,8]
[383932349,1757179859704,-400.0,0.00035616,8]
[383932350,1757179859714,-400.0,0.00035616,8]
[383932351,1757179859723,-513.17,0.00035616,8]
[383932352,1757179859733,-432.34,0.00035616,8]
[383932353,1757179859742,-400.0,0.00035616,8]
[383932354,1757179859752,-400.0,0.00035616,8]
[383932355,1757179859761,-984.66,0.00035616,8]
[383932356,1757179859770,-400.0,0.00035616,8]
[383932357,1757179859779,-674.17,0.00035616,8]
[383932358,1757179859789,-400.0,0.00035616,8]
[383932359,1757179859798,-500.0,0.00035616,8]
[383932360,1757179859807,-500.0,0.00035616,8]
[383932361,1757179859816,-400.0,0.00035616,8]
[383932362,1757179859826,-400.0,0.00035616,8]
[383932363,1757179859835,-622.72,0.00035616,8]
[383932364,1757179859845,-952.55,0.00035616,8]
[383932365,1757179859853,-717.1,0.00035616,8]
[383932366,1757179859863,-400.0,0.00035616,8]
[383932367,1757179859873,-400.0,0.00035616,8]
[383932368,1757179859883,-400.0,0.00035616,8]
[383932369,1757179859892,-400.0,0.00035616,8]
[383932370,1757179859901,-869.23,0.00035616,8]
[383932371,1757179859911,-553.43890568,0.00035616,8]
[383932372,1757179859920,-439.78,0.00035616,8]
[383932373,1757179859929,-400.0,0.00035616,8]
[383932374,1757179859939,-400.0,0.00035616,8]
[383932375,1757179859949,-400.0,0.00035616,8]
[383932376,1757179859958,-400.0,0.00035616,8]
[383932377,1757179859967,-400.0,0.00035616,8]
[383932378,1757179859976,-400.0,0.00035616,8]
[383932379,1757179859986,-400.0,0.00035616,8]
[383932380,1757179859995,-400.0,0.00035616,8]
[383932381,1757179860009,-400.0,0.00035616,8]
[383932382,1757179860018,-561.9,0.00035616,8]
[383932383,1757179860028,-400.0,0.00035616,8]
[383932384,1757179860037,-400.0,0.00035616,8]
[383932385,1757179860047,-454.99,0.00035616,8]
[383932386,1757179860056,-400.0,0.00035616,8]
[383932387,1757179860066,-400.0,0.00035616,8]
[383932388,1757179860080,-400.0,0.00035616,8]
[383932389,1757179860089,-400.0,0.00035616,8]
[383932390,1757179860099,-400.0,0.00035616,8]
[383932391,1757179860109,-400.0,0.00035616,8]
[383932392,1757179860118,-400.0,0.00035616,8]
[383932393,1757179860129,-425.18,0.00035616,8]
[383932394,1757179860139,-400.0,0.00035616,8]
[383932395,1757179860149,-400.0,0.00035616,8]
[383932396,1757179860159,-400.0,0.00035616,8]
[383932397,1757179860170,-400.0,0.00035616,8]
[383932398,1757179860180,-400.0,0.00035616,8]
[383932399,1757179860191,-400.0,0.00035616,8]
[383932400,1757179860201,-400.0,0.00035616,8]
[383932401,1757179860211,-447.68,0.00035616,8]
[383932402,1757179860223,-400.0,0.00035616,8]
[383932403,1757179860233,-400.0,0.00035616,8]
[383932404,1757179860243,-400.0,0.00035616,8]
[383932405,1757179860252,-715.04,0.00035616,8]
[383932406,1757179860262,-400.0,0.00035616,8]
[383932407,1757179860273,-400.0,0.00035616,8]
[383932408,1757179860283,-400.0,0.00035616,8]
[383932409,1757179860293,-400.0,0.00035616,8]
[383932410,1757179860303,-400.0,0.00035616,8]
[383932411,1757179860314,-402.87678348,0.00035616,8]
[383932412,1757179860323,-745.59,0.00035616,120]
[383932413,1757179860333,-400.0,0.00035616,8]
[383932414,1757179860343,-400.0,0.00035616,8]
[383932415,1757179860353,-400.0,0.00035616,8]
[383932416,1757179860363,-400.0,0.00035616,8]
[383932417,1757179860372,-400.0,0.00035616,8]
[383932418,1757179860382,-400.0,0.00035616,8]
[383932419,1757179860391,-605.33,0.00035616,8]
[383932420,1757179860401,-400.0,0.00035616,8]
[383932421,1757179860411,-429.21,0.00035616,8]
[383932422,1757179860420,-467.62,0.00035616,8]
[383932423,1757179860430,-400.0,0.00035616,8]
[383932424,1757179860439,-400.0,0.00035616,8]
[383932425,1757179860449,-635.48,0.00035616,8]
[383932426,1757179860458,-400.0,0.00035616,8]
[383932427,1757179860467,-400.0,0.00035616,8]
[383932428,1757179860477,-910.97,0.00035616,8]
[383932429,1757179860487,-400.0,0.00035616,8]
[383932430,1757179860497,-610.18,0.00035616,8]
[383932431,1757179860506,-400.0,0.00035616,8]
[383932432,1757179860517,-400.0,0.00035616,8]
[383932433,1757179860528,-400.0,0.00035616,8]
[383932434,1757179860539,-400.0,0.00035616,8]
[383932435,1757179860549,-400.0,0.00035616,8]
[383932436,1757179860559,-501.99,0.00035616,8]
[383932437,1757179860571,-400.0,0.00035616,8]
[383932438,1757179860580,-633.53,0.00035616,8]
[383932439,1757179860590,-400.0,0.00035616,8]
[383932440,1757179860600,-400.0,0.00035616,8]
[383932441,1757179860610,-400.0,0.00035616,8]
[383932442,1757179860620,-400.0,0.00035616,8]
[383932443,1757179860630,-412.30874637,0.00035616,8]
[383932444,1757179860640,-533.07,0.00035616,8]
[383932445,1757179860651,-767.85,0.00035616,8]
[383932446,1757179860662,-400.0,0.00035616,8]
[383932447,1757179860673,-400.0,0.00035616,8]
[383932448,1757179860683,-400.0,0.00035616,8]
[383932449,1757179860692,-400.0,0.00035616,8]
[383932450,1757179860701,-400.0,0.00035616,8]
[383932451,1757179860712,-400.0,0.00035616,8]
[383932452,1757179860722,-400.0,0.00035616,8]
[383932453,1757179860731,-400.0,0.00035616,8]
[383932454,1757179860742,-730.1,0.00035616,8]
[383932455,1757179860752,-485.11,0.00035616,8]
[383932456,1757179860761,-153.11319,0.00035616,10]
[383932457,1757179860771,-499.76176126,0.00035616,8]
[383932458,1757179860781,-416.71,0.00035616,8]
[383932459,1757179860792,-689.9,0.00035616,8]
[383932460,1757179860802,-400.0,0.00035616,8]
[383932461,1757179860812,-400.0,0.00035616,8]
[383932462,1757179860822,-739.56,0.00035616,8]
[383932463,1757179860833,-400.0,0.00035616,8]
[383932464,1757179860845,-401.58768112,0.00035616,8]
[383932465,1757179860856,-400.0,0.00035616,8]
[383932466,1757179860866,-400.0,0.00035616,8]
[383932467,1757179860876,-400.0,0.00035616,8]
[383932468,1757179860886,-400.0,0.00035616,8]
[383932469,1757179860895,-400.0,0.00035616,8]
[383932470,1757179860905,-400.0,0.00035616,8]
[383932471,1757179860914,-402.17,0.00035616,8]
[383932472,1757179860924,-400.0,0.00035616,8]
[383932473,1757179860934,-400.0,0.00035616,8]
[383932474,1757179860943,-400.0,0.00035616,8]
[383932475,1757179860952,-902.21,0.00035616,8]
[383932476,1757179860962,-549.79,0.00035616,8]
[383932477,1757179860971,-400.0,0.00035616,8]
[383932478,1757179860982,-400.0,0.00035616,8]
[383932479,1757179860991,-400.0,0.00035616,8]
[383932480,1757179861003,-434.91,0.00035616,8]
[383932481,1757179861013,-400.0,0.00035616,8]
[383932482,1757179861023,-400.0,0.00035616,8]
[383932483,1757179861033,-400.0,0.00035616,8]
[383932484,1757179861044,-400.0,0.00035616,8]
[383932485,1757179861054,-400.0,0.00035616,8]
[383932486,1757179861063,-400.0,0.00035616,8]
[383932487,1757179861074,-400.0,0.00035616,8]
[383932488,1757179861084,-476.43,0.00035616,8]
[383932489,1757179861094,-400.0,0.00035616,8]
[383932490,1757179861103,-400.0,0.00035616,8]
[383932491,1757179861113,-400.0,0.00035616,8]
[383932492,1757179861123,-414.98,0.00035616,8]
[383932493,1757179861132,-515.39,0.00035616,8]
[383932494,1757179861142,-400.0,0.00035616,8]
[383932495,1757179861156,-400.0,0.00035616,8]
[383932496,1757179861167,-601.18,0.00035616,8]
[383932497,1757179861177,-1858.34,0.00035616,8]
[383932498,1757179861187,-400.0,0.00035616,8]
[383932499,1757179861197,-400.0,0.00035616,8]
[383932500,1757179861207,-400.0,0.00035616,8]
[383932501,1757179861218,-400.0,0.00035616,8]
[383932502,1757179861228,-400.0,0.00035616,8]
[383932503,1757179861238,-400.0,0.00035616,8]
[383932504,1757179861249,-400.0,0.00035616,8]
[383932505,1757179861260,-400.0,0.00035616,8]
[383932506,1757179861270,-400.0,0.00035616,8]
[383932507,1757179861280,-928.62,0.00035616,8]
[383932508,1757179861292,-521.6,0.00035616,8]
[383932509,1757179861303,-400.0,0.00035616,8]
[383932510,1757179861313,-577.63,0.00035616,8]
[383932511,1757179861323,-657.22,0.00035616,8]
[383932512,1757179861333,-400.0,0.00035616,8]
[383932513,1757179861343,-400.0,0.00035616,8]
[383932514,1757179861353,-400.0,0.00035616,8]
[383932515,1757179861363,-400.0,0.00035616,8]
[383932516,1757179861373,-400.0,0.00035616,8]
[383932517,1757179861383,-400.0,0.00035616,8]
[383932518,1757179861395,-400.0,0.00035616,8]
[383932519,1757179861406,-445.71,0.00035616,8]
[383932520,1757179861415,-400.0,0.00035616,8]
[383932521,1757179861425,-400.0,0.00035616,8]
[383932522,1757179861435,-400.0,0.00035616,8]
[383932523,1757179861445,-524.19,0.00035616,8]
[383932524,1757179861454,-532.67044427,0.00035616,8]
[383932525,1757179861464,-609.25,0.00035616,8]
[383932526,1757179861474,-400.0,0.00035616,8]
[383932527,1757179861484,-680.09,0.00035616,8]
[383932528,1757179861494,-492.34,0.00035616,8]
[383932529,1757179861504,-400.0,0.00035616,8]
[383932530,1757179861514,-400.0,0.00035616,8]
[383932531,1757179861524,-400.0,0.00035616,8]
[383932532,1757179861534,-400.0,0.00035616,8]
[383932533,1757179861544,-841.91,0.00035616,8]
[383932534,1757179861554,-402.42511405,0.00035616,8]
[383932535,1757179861564,-402.125191,0.00035616,8]
[383932536,1757179861574,-501.77,0.00035616,8]
[383932537,1757179861586,-400.0,0.00035616,2]
[383932538,1757179861596,-400.0,0.00035616,8]
[383932539,1757179861606,-400.0,0.00035616,8]
[383932540,1757179861616,-400.0,0.00035616,8]
[383932541,1757179861626,-485.24,0.00035616,8]
[383932542,1757179861904,-400.0,0.00035616,8]
[383932543,1757179861929,-400.0,0.00035616,8]
[383932544,1757179861938,-400.0,0.00035616,8]
[383932545,1757179861951,-502.21,0.00035616,8]
[383932546,1757179861961,-500.0,0.00035616,8]
[383932547,1757179861971,-500.0,0.00035616,8]
[383932548,1757179861980,-500.0,0.00035616,8]
[383932549,1757179861991,-400.0,0.00035616,8]
[383932550,1757179862002,-400.0,0.00035616,8]
[383932551,1757179862014,-500.0,0.00035616,8]
[383932552,1757179862024,-500.0,0.00035616,8]
[383932553,1757179862033,-500.0,0.00035616,8]
[383932554,1757179862043,-400.0,0.00035616,8]
[383932555,1757179862053,-500.0,0.00035616,8]
[383932556,1757179862063,-500.0,0.00035616,8]
[383932557,1757179862072,-500.0,0.00035616,8]
[383932558,1757179862082,-400.0,0.00035616,8]
[383932559,1757179862092,-500.0,0.00035616,8]
[383932560,1757179862104,-400.0,0.00035616,8]
[383932561,1757179862124,-400.0,0.00035616,8]
[383932562,1757179862143,-400.0,0.00035616,8]
[383932563,1757179862153,-401.72298473,0.00035616,8]
[383932564,1757179862164,-400.0,0.00035616,8]
[383932565,1757179862174,-500.0,0.00035616,8]
[383932566,1757179862184,-500.0,0.00035616,8]
[383932567,1757179862194,-500.0,0.00035616,8]
[383932568,1757179862204,-400.0,0.00035616,8]
[383932569,1757179862213,-500.0,0.00035616,8]
[383932570,1757179862224,-617.52,0.00035616,8]
[383932571,1757179862234,-500.0,0.00035616,8]
[383932572,1757179862245,-400.0,0.00035616,8]
[383932573,1757179862255,-515.25755763,0.00035616,8]
[383932574,1757179862265,-400.0,0.00035616,8]
[383932575,1757179862275,-400.0,0.00035616,8]
[383932576,1757179862287,-400.0,0.00035616,8]
[383932577,1757179862308,-429.2605444,0.00035616,8]
[383932578,1757179862330,-667.66,0.00035616,8]
[383932579,1757179862351,-400.0,0.00035616,8]
[383932580,1757179862373,-400.0,0.00035616,8]
[383932581,1757179862385,-657.98,0.00035616,8]
[383932582,1757179862395,-400.0,0.00035616,8]
[383932583,1757179862405,-674.59,0.00035616,8]
[383932584,1757179862415,-438.52,0.00035616,8]
[383932585,1757179862425,-442.02,0.00035616,8]
[383932586,1757179862435,-400.0,0.00035616,8]
[383932587,1757179862444,-400.0,0.00035616,8]
[383932588,1757179862454,-1701.12,0.00035616,8]
[383932589,1757179862464,-400.0,0.00035616,8]
[383932590,1757179862475,-400.0,0.00035616,8]
[383932591,1757179862484,-1391.16,0.00035616,8]
[383932592,1757179862493,-400.0,0.00035616,8]
[383932593,1757179862503,-800.0,0.00035616,120]
[383932594,1757179862512,-470.02,0.00035616,8]
[383932595,1757179862522,-400.0,0.00035616,8]
[383932596,1757179862531,-400.0,0.00035616,8]
[383932597,1757179862541,-400.0,0.00035616,8]
[383932598,1757179862551,-634.03,0.00035616,8]
[383932599,1757179862560,-570.04,0.00035616,8]
[383932600,1757179862569,-400.0,0.00035616,8]
[383932601,1757179862578,-400.0,0.00035616,8]
[383932602,1757179862588,-400.0,0.00035616,8]
[383932603,1757179862600,-400.0,0.00035616,8]
[383932604,1757179862616,-400.0,0.00035616,8]
[383932605,1757179862628,-400.0,0.00035616,8]
[383932606,1757179862638,-400.0,0.00035616,8]
[383932607,1757179862647,-400.0,0.00035616,8]
[383932608,1757179862657,-400.0,0.00035616,8]
[383932609,1757179862667,-400.0,0.00035616,8]
[383932610,1757179862677,-400.0,0.00035616,8]
[383932611,1757179862687,-400.0,0.00035616,8]
[383932612,1757179862697,-400.0,0.00035616,8]
[383932613,1757179862707,-593.9,0.00035616,8]
[383932614,1757179862716,-485.85,0.00035616,8]
[383932615,1757179862726,-400.0,0.00035616,8]
[383932616,1757179862736,-628.93,0.00035616,8]
[383932617,1757179862745,-400.0,0.00035616,8]
[383932618,1757179862755,-400.0,0.00035616,8]
[383932619,1757179862764,-621.03,0.00035616,8]
[383932620,1757179862774,-620.36,0.00035616,8]
[383932621,1757179862784,-400.0,0.00035616,8]
[383932622,1757179862793,-374.65714009,0.00035616,8]
[383932623,1757179862803,-400.0,0.00035616,8]
[383932624,1757179862813,-678.46,0.00035616,8]
[383932625,1757179862822,-271.87447,0.00035616,10]
[383932626,1757179862832,-400.0,0.00035616,8]
[383932627,1757179862841,-211.859915,0.00035616,10]
[383932628,1757179862851,-162.399418,0.00035616,10]
[383932629,1757179862861,-555.04,0.00035616,8]
[383932630,1757179862870,-400.0,0.00035616,8]
[383932631,1757179862879,-400.0,0.00035616,8]
[383932632,1757179862887,-400.0,0.00035616,8]
[383932633,1757179862897,-767.71,0.00035616,8]
[383932634,1757179862906,-743.4,0.00035616,8]
[383932635,1757179862918,-400.0,0.00035616,8]
[383932636,1757179862928,-654.55,0.00035616,8]
[383932637,1757179862938,-400.0,0.00035616,8]
[383932638,1757179862947,-400.0,0.00035616,8]
[383932639,1757179862957,-400.0,0.00035616,8]
[383932640,1757179862967,-471.06,0.00035616,8]
[383932641,1757179862977,-5193.06,0.00035616,5]
[383932642,1757179862986,-400.0,0.00035616,8]
[383932643,1757179862996,-400.0,0.00035616,8]
[383932644,1757179863009,-400.0,0.00035616,8]
[383932645,1757179863019,-400.0,0.00035616,8]
[383932646,1757179863028,-400.0,0.00035616,8]
[383932647,1757179863038,-400.0,0.00035616,8]
[383932648,1757179863050,-400.0,0.00035616,8]
[383932649,1757179863059,-400.0,0.00035616,8]
[383932650,1757179863069,-457.62,0.00035616,8]
[383932651,1757179863080,-716.62,0.00035616,8]
[383932652,1757179863090,-638.26,0.00035616,8]
[383932653,1757179863099,-237.48102001,0.00035616,8]
[383932654,1757179863109,-400.0,0.00035616,8]
[383932655,1757179863119,-400.0,0.00035616,8]
[383932656,1757179863128,-427.42402598,0.00035616,8]
[383932657,1757179863137,-429.43,0.00035616,8]
[383932658,1757179863147,-500.0,0.00035616,8]
[383932659,1757179863157,-500.0,0.00035616,8]
[383932660,1757179863168,-400.0,0.00035616,8]
[383932661,1757179863178,-500.0,0.00035616,8]
[383932662,1757179863189,-500.0,0.00035616,8]
[383932663,1757179863200,-400.0,0.00035616,8]
[383932664,1757179863210,-500.0,0.00035616,8]
[383932665,1757179863220,-500.0,0.00035616,8]
[383932666,1757179863231,-500.0,0.00035616,8]
[383932667,1757179863242,-686.2,0.00035616,8]
[383932668,1757179863252,-503.44359349,0.00035616,8]
[383932669,1757179863262,-591.68,0.00035616,8]
[383932670,1757179863272,-400.0,0.00035616,8]
[383932671,1757179863282,-400.0,0.00035616,8]
[383932672,1757179863292,-400.0,0.00035616,8]
[383932673,1757179863302,-400.0,0.00035616,8]
[383932674,1757179863312,-400.0,0.00035616,8]
[383932675,1757179863322,-400.0,0.00035616,8]
[383932676,1757179863331,-798.06,0.00035616,8]
[383932677,1757179863341,-758.52,0.00035616,8]
[383932678,1757179863351,-184.13912,0.00035616,10]
[383932679,1757179863361,-439.15,0.00035616,8]
[383932680,1757179863372,-400.0,0.00035616,8]
[383932681,1757179863381,-400.0,0.00035616,8]
[383932682,1757179863391,-400.0,0.00035616,8]
[383932683,1757179863401,-400.0,0.00035616,8]
[383932684,1757179863412,-400.0,0.00035616,8]
[383932685,1757179863422,-400.0,0.00035616,8]
[383932686,1757179863433,-400.0,0.00035616,8]
[383932687,1757179863443,-400.0,0.00035616,8]
[383932688,1757179863452,-400.0,0.00035616,8]
[383932689,1757179863462,-727.89,0.00035616,8]
[383932690,1757179863472,-400.0,0.00035616,8]
[383932691,1757179863483,-400.0,0.00035616,8]
[383932692,1757179863492,-400.0,0.00035616,8]
[383932693,1757179863503,-440.21,0.00035616,8]
[383932694,1757179863514,-400.0,0.00035616,8]
[383932695,1757179863524,-635.25,0.00035616,8]
[383932696,1757179863534,-625.1,0.00035616,8]
[383932697,1757179863544,-400.0,0.00035616,8]
[383932698,1757179863554,-400.0,0.00035616,8]
[383932699,1757179863564,-400.0,0.00035616,8]
[383932700,1757179863573,-502.96427958,0.00035616,8]
[383932701,1757179863584,-672.51,0.00035616,8]
[383932702,1757179863594,-856.3,0.00035616,8]
[383932703,1757179863604,-585.31,0.00035616,8]
[383932704,1757179863614,-400.0,0.00035616,8]
[383932705,1757179863624,-400.0,0.00035616,8]
[383932706,1757179863634,-3545.47,0.00035616,8]
[383932707,1757179863644,-400.0,0.00035616,8]
[383932708,1757179863655,-582.1,0.00035616,8]
[383932709,1757179863665,-400.0,0.00035616,8]
[383932710,1757179863675,-400.0,0.00035616,8]
[383932711,1757179863685,-400.0,0.00035616,8]
[383932712,1757179863696,-400.0,0.00035616,8]
[383932713,1757179863706,-400.0,0.00035616,8]
[383932714,1757179863716,-402.79144914,0.00035616,8]
[383932715,1757179863726,-169.29317851,0.00035616,8]
[383932716,1757179863736,-400.0,0.00035616,8]
[383932717,1757179863746,-400.0,0.00035616,8]
[383932718,1757179863756,-679.78,0.00035616,8]
[383932719,1757179863766,-904.53,0.00035616,8]
[383932720,1757179863776,-400.0,0.00035616,8]
[383932721,1757179863786,-840.12,0.00035616,8]
[383932722,1757179863795,-404.89340431,0.00035616,8]
[383932723,1757179863805,-400.0,0.00035616,8]
[383932724,1757179863815,-400.0,0.00035616,8]
[383932725,1757179863826,-195.29991566,0.00035616,8]
[383932726,1757179863836,-538.14,0.00035616,8]
[383932727,1757179863845,-400.0,0.00035616,8]
[383932728,1757179863855,-2566.09,0.00035616,8]
[383932729,1757179863865,-400.0,0.00035616,8]
[383932730,1757179863874,-400.0,0.00035616,8]
[383932731,1757179863884,-623.28,0.00035616,8]
[383932732,1757179863893,-736.52,0.00035616,8]
[383932733,1757179863903,-157.42203785,0.00035616,8]
[383932734,1757179863913,-271.87447,0.00035616,10]
[383932735,1757179863923,-400.0,0.00035616,8]
[383932736,1757179863932,-712.96,0.00035616,8]
[383932737,1757179863942,-400.0,0.00035616,8]
[383932738,1757179863952,-847.62,0.00035616,8]
[383932739,1757179863962,-400.0,0.00035616,8]
[383932740,1757179863972,-634.57,0.00035616,8]
[383932741,1757179863982,-407.73136639,0.00035616,8]
[383932742,1757179863991,-664.48,0.00035616,8]
[383932743,1757179864004,-2626.8,0.00035616,8]
[383932744,1757179864014,-400.0,0.00035616,8]
[383932745,1757179864024,-400.0,0.00035616,8]
[383932746,1757179864034,-400.0,0.00035616,8]
[383932747,1757179864044,-400.0,0.00035616,8]
[383932748,1757179864054,-400.0,0.00035616,8]
[383932749,1757179864064,-571.24,0.00035616,8]
[383932750,1757179864075,-400.0,0.00035616,8]
[383932751,1757179864085,-2313.05,0.00035616,8]
[383932752,1757179864095,-402.62241975,0.00035616,8]
[383932753,1757179864105,-400.0,0.00035616,8]
[383932754,1757179864115,-400.0,0.00035616,8]
[383932755,1757179864125,-801.48,0.00035616,8]
[383932756,1757179864135,-400.0,0.00035616,8]
[383932757,1757179864144,-850.95,0.00035616,8]
[383932758,1757179864154,-768.93,0.00035616,8]
[383932759,1757179864165,-902.17,0.00035616,8]
[383932760,1757179864175,-400.0,0.00035616,8]
[383932761,1757179864185,-400.0,0.00035616,8]
[383932762,1757179864195,-740.87,0.00035616,8]
[383932763,1757179864205,-1117.26,0.00035616,8]
[383932764,1757179864215,-400.0,0.00035616,8]
[383932765,1757179864226,-427.78,0.00035616,8]
[383932766,1757179864236,-400.0,0.00035616,8]
[383932767,1757179864247,-400.0,0.00035616,8]
[383932768,1757179864258,-506.42,0.00035616,8]
[383932769,1757179864268,-400.0,0.00035616,8]
[383932770,1757179864278,-649.95,0.00035616,8]
[383932771,1757179864288,-400.0,0.00035616,8]
[383932772,1757179864298,-3593.23,0.00035616,8]
[383932773,1757179864307,-617.93,0.00035616,8]
[383932774,1757179864317,-695.65,0.00035616,8]
[383932775,1757179864328,-709.29,0.00035616,8]
[383932776,1757179864338,-402.11795948,0.00035616,8]
[383932777,1757179864348,-4389.96,0.00035616,8]
[383932778,1757179864358,-400.0,0.00035616,8]